bitfinex/quotes_ETHUSD_20240718
["timestamp","ask_amount","ask_price","bid_price","bid_amount"]
[1721275644886,2.91512,3430.4,3429.7,3.1291]
[1721275652477,2.91519,3430.3,3429.7,3.1291]
[1721275652679,2.91537,3430.1,3429.5,0.832]
[1721275654671,2.91537,3430.1,3429.4,5.23915]
[1721275654881,2.91561,3429.9,3429.0,2.2856]
[1721275655105,2.91568,3429.8,3429.0,2.2856]
[1721275655277,2.91568,3429.8,3429.2,0.832]
[1721275656317,5.691078,3430.1,3429.1,0.832]
[1721275656318,2.91573,3429.7,3429.1,0.832]
[1721275656520,2.91556,3429.9,3429.1,0.832]
[1721275656674,2.91556,3429.9,3429.1,1.44376]
[1721275656878,2.91556,3429.9,3429.3,0.832]
[1721275658196,5.27,3430.2,3429.3,0.832]
[1721275658197,2.9154,3430.1,3429.3,0.832]
[1721275658381,5.27,3430.2,3429.6,2.343]
[1721275658718,2.91539,3430.1,3429.6,2.343]
[1721275660515,2.91511,3430.4,3429.6,2.343]
[1721275660682,2.91528,3430.3,3429.9,0.832]
[1721275660878,0.517841,3430.3,3429.7,0.832]
[1721275662410,2.9153,3430.2,3429.7,0.832]
[1721275667109,2.9153,3430.2,3429.6,2.343]
[1721275667509,2.9153,3430.2,3429.7,0.832]
[1721275668211,3.0,3430.7,3429.7,1.441086]
[1721275668212,2.91495,3430.6,3429.7,1.441086]
[1721275668409,2.91495,3430.6,3430.1,0.832]
[1721275668991,2.91495,3430.6,3429.9,0.832]
[1721275672229,2.91528,3430.2,3429.6,2.343]
[1721275678244,2.91528,3430.2,3429.6,3.175]
[1721275679350,2.91537,3430.1,3429.6,2.343]
[1721275680758,2.91537,3430.1,3429.6,3.175]
[1721275681108,2.91537,3430.1,3429.6,2.343]
[1721275682923,2.91537,3430.1,3429.6,3.175]
[1721275683309,2.91537,3430.1,3429.6,2.343]
[1721275684779,2.2895,3430.5,3429.4,3.7479]
[1721275684780,2.2895,3430.5,3429.5,2.254]
[1721275685087,2.91556,3429.9,3429.5,2.254]
[1721275686848,2.91541,3430.1,3429.5,2.254]
[1721275687206,2.91551,3430.0,3429.5,2.254]
[1721275689359,2.91529,3430.2,3429.6,0.832]
[1721275689576,2.91529,3430.2,3429.7,2.4631]
[1721275689900,2.9152,3430.3,3429.7,2.4631]
[1721275691396,2.9152,3430.3,3429.8,0.832]
[1721275692188,2.9152,3430.3,3429.7,2.4631]
[1721275692801,2.9153,3430.2,3429.7,2.4631]
[1721275693595,0.583042,3430.2,3429.3,2.4545]
[1721275693763,2.2832,3430.5,3429.3,2.4545]
[1721275693764,0.832,3430.4,3429.3,2.4545]
[1721275694116,0.70935881,3430.3,3429.3,2.4545]
[1721275694419,0.70935881,3430.2,3429.3,2.4545]
[1721275694616,0.832,3430.4,3429.3,2.4545]
[1721275694763,1.02087111,3430.3,3429.3,2.4545]
[1721275694964,0.70935111,3430.2,3429.3,2.4545]
[1721275695164,2.9156,3429.9,3429.3,2.4545]
[1721275696277,2.9156,3429.9,3429.4,0.832]
[1721275699827,2.9156,3429.9,3429.3,2.4545]
[1721275702892,2.9156,3429.9,3429.4,0.832]
[1721275705219,2.9156,3429.9,3429.3,2.4545]
[1721275708732,2.91562,3429.8,3429.3,2.4545]
[1721275708935,10.0,3430.0,3429.4,2.3368]
[1721275709245,10.0,3430.0,3429.9,3.311]
[1721275716843,10.0,3430.0,3429.5,0.832]
[1721275723468,10.0,3430.0,3429.7,0.832]
[1721275724912,10.0,3430.0,3429.8,2.4402]
[1721275727915,10.0,3430.0,3429.9,0.832]
[1721275728818,10.0,3430.0,3429.9,3.74659]
[1721275730045,10.0,3430.0,3429.9,6.66212]
[1721275730248,10.0,3430.0,3429.9,10.59142495]
[1721275730451,9.39183653,3430.0,3429.9,18.58891822]
[1721275730649,7.34,3431.7,3431.0,2.3245]
[1721275730848,2.91396,3431.8,3431.0,5.2391]
[1721275731095,5.34886,3432.0,3431.6,0.832]
[1721275731222,2.4351,3432.0,3431.6,0.832]
[1721275731662,2.9136,3432.2,3431.6,0.832]
[1721275732014,2.9136,3432.2,3431.8,0.832]
[1721275732754,2.9136,3432.2,3431.6,0.832]
[1721275732940,0.811272,3432.1,3431.6,0.832]
[1721275733451,3.724942,3432.1,3431.6,0.832]
[1721275733663,3.724942,3432.1,3431.4,0.832]
[1721275733820,3.724942,3432.1,3431.2,2.91441]
[1721275734027,6.638672,3432.1,3431.2,0.832]
[1721275734253,2.13999826,3433.2,3430.5,2.3765]
[1721275734254,2.91409,3431.6,3430.5,2.3765]
[1721275734558,2.378,3431.5,3430.6,2.91492]
[1721275735946,2.91477,3430.8,3429.9,2.8029079]
[1721275736258,2.91428,3431.4,3430.1,2.4992]
[1721275736437,2.91436,3431.3,3430.4,2.91511]
[1721275738654,2.3197,3431.6,3430.1,2.4992]
[1721275738655,2.91443,3431.2,3430.1,2.4992]
[1721275739226,2.91443,3431.2,3430.2,2.91527]
[1721275739426,2.91443,3431.2,3430.3,3.456627]
[1721275739649,2.3197,3431.6,3430.5,2.4363]
[1721275739650,5.2338,3431.6,3430.5,2.4363]
[1721275739931,2.9141,3431.6,3430.5,2.4363]
[1721275740243,2.9141,3431.6,3430.7,2.91485]
[1721275740458,2.9141,3431.6,3430.7,3.449965]
[1721275740820,2.9142,3431.5,3430.7,3.449965]
[1721275742674,2.91392,3431.8,3430.7,3.449965]
[1721275742675,2.91392,3431.8,3430.8,2.91475]
[1721275742986,2.9144,3431.3,3430.5,2.4363]
[1721275743211,3.497258,3431.3,3430.5,2.4363]
[1721275743495,2.9144,3431.3,3430.5,2.4363]
[1721275743905,5.3099,3431.3,3430.5,2.4363]
[1721275744196,5.3099,3431.3,3430.1,2.4206]
[1721275744197,2.91453,3431.1,3430.1,2.4206]
[1721275744563,2.91468,3430.9,3430.1,2.4206]
[1721275744756,2.91468,3430.9,3430.2,0.833603]
[1721275744954,2.91468,3430.9,3430.1,2.4206]
[1721275745700,2.91483,3430.8,3430.1,2.4206]
[1721275747296,2.91459,3431.1,3430.1,2.4206]
[1721275747701,2.91459,3431.1,3430.3,2.91516]
[1721275747902,2.91459,3431.1,3430.1,2.4206]
[1721275747903,2.91435,3431.3,3430.4,2.9151]
[1721275748067,2.91435,3431.3,3430.5,0.29151]
[1721275748272,2.91444,3431.2,3430.5,0.29151]
[1721275749822,2.91418,3431.5,3430.7,2.2566]
[1721275750415,2.91426,3431.4,3430.7,2.2566]
[1721275750617,2.91402,3431.7,3430.7,5.17144]
[1721275750826,2.91392,3431.8,3430.8,0.546295]
[1721275750964,2.3687,3432.1,3431.0,2.91459]
[1721275750965,2.91385,3431.9,3431.0,2.91459]
[1721275751168,2.91359,3432.2,3431.2,2.91442]
[1721275751381,2.91359,3432.2,3431.4,2.91424]
[1721275751798,2.91345,3432.4,3431.5,2.91416]
[1721275753468,2.91345,3432.4,3431.6,2.91408]
[1721275755447,2.91345,3432.4,3431.7,2.91398]
[1721275757017,5.28197,3432.6,3431.7,2.91398]
[1721275757450,2.91327,3432.6,3431.7,0.58864987]
[1721275757757,2.91311,3432.8,3431.8,2.3442]
[1721275758321,2.91311,3432.8,3432.0,2.91374]
[1721275758611,2.4407,3433.0,3432.2,2.91356]
[1721275759201,2.91265,3433.3,3432.3,2.91348]
[1721275759545,3.724093,3433.3,3432.3,2.91342]
[1721275760202,2.91265,3433.3,3432.3,2.91342]
[1721275760404,2.91248,3433.5,3432.5,2.91332]
[1721275761035,2.91248,3433.5,3432.6,2.91323]
[1721275762308,10.25232,3433.7,3432.7,5.82621]
[1721275762544,2.91232,3433.7,3432.7,5.82621]
[1721275762723,3.741766,3433.7,3432.7,5.82621]
[1721275762908,3.741766,3433.7,3432.8,2.91299]
[1721275763114,2.91232,3433.7,3432.8,2.91299]
[1721275764946,10.25174,3434.4,3433.2,2.91272]
[1721275765159,2.91181,3434.3,3433.5,2.91247]
[1721275765648,2.91191,3434.2,3433.3,2.91262]
[1721275765856,0.582372,3434.2,3433.3,2.91262]
[1721275766008,0.582372,3434.2,3433.3,2.91257]
[1721275766209,2.91181,3434.3,3433.3,2.91257]
[1721275766661,5.16512,3434.6,3433.4,2.91254]
[1721275766808,2.91186,3434.3,3433.4,2.91254]
[1721275767254,2.91189,3434.2,3433.4,2.91254]
[1721275767825,2.91189,3434.2,3433.2,2.91269]
[1721275768063,2.91189,3434.2,3433.3,0.582549]
[1721275768379,2.91189,3434.2,3433.3,3.495189]
[1721275769570,2.91197,3434.1,3433.3,3.495189]
[1721275769870,2.91184,3434.3,3433.3,3.495189]
[1721275770250,2.9119,3434.2,3433.3,3.495189]
[1721275770430,2.9119,3434.2,3433.4,3.5533589]
[1721275771048,5.16505,3434.6,3433.6,2.91238]
[1721275771281,2.91155,3434.6,3433.6,2.91238]
[1721275772067,2.91155,3434.6,3433.7,2.9123]
[1721275773137,2.91148,3434.7,3433.8,2.91221]
[1721275773352,2.91148,3434.7,3433.9,0.582451]
[1721275773543,2.91148,3434.7,3433.8,2.91221]
[1721275774540,2.91154,3434.6,3433.8,2.91221]
[1721275775461,2.91175,3434.4,3433.5,5.34655]
[1721275775633,7.34,3435.4,3433.8,2.91215]
[1721275775832,9.7351,3436.1,3434.6,2.4935]
[1721275776186,2.91045,3435.9,3434.8,2.91136]
[1721275776469,2.91045,3435.9,3434.6,2.4935]
[1721275776470,2.91064,3435.7,3434.6,2.4935]
[1721275776779,2.91092,3435.4,3434.6,2.4935]
[1721275776937,2.91092,3435.4,3434.7,0.540507]
[1721275777133,2.91051,3435.9,3434.2,2.421]
[1721275777338,2.91121,3435.0,3434.2,5.33288]
[1721275779777,2.91148,3434.7,3433.9,3.452685]
[1721275780077,2.91129,3434.9,3433.9,3.452685]
[1721275780376,2.91116,3435.1,3434.1,2.91195]
[1721275780876,2.9109,3435.4,3434.2,5.19657]
[1721275781764,2.9109,3435.4,3434.4,2.91169]
[1721275782065,2.9109,3435.4,3434.5,2.91159]
[1721275782237,2.9109,3435.4,3434.6,0.291159]
[1721275782656,2.91071,3435.6,3434.8,2.91137]
[1721275782857,2.91071,3435.6,3434.9,2.3345]
[1721275783186,2.91089,3435.4,3434.6,3.202679]
[1721275783697,2.91089,3435.4,3434.6,0.291159]
[1721275783991,2.91089,3435.4,3434.7,0.5537369]
[1721275784348,2.91103,3435.3,3434.7,0.5537369]
[1721275784595,2.91105,3435.2,3434.6,0.291159]
[1721275784799,2.4855,3435.6,3434.6,0.291159]
[1721275785099,2.91121,3435.0,3434.2,2.3871]
[1721275785484,2.9113,3434.9,3434.2,2.3871]
[1721275786790,2.91139,3434.8,3434.2,2.3871]
[1721275787990,2.91121,3435.0,3434.2,2.3871]
[1721275788192,2.91129,3434.9,3434.3,0.58810285]
[1721275788701,2.91112,3435.1,3434.3,0.58810285]
[1721275788702,2.91138,3434.8,3434.3,0.58810285]
[1721275790062,2.91112,3435.1,3434.3,0.58810285]
[1721275790063,2.91125,3435.0,3434.3,0.58810285]
[1721275790460,2.91129,3434.9,3434.3,0.58810285]
[1721275790694,2.91129,3434.9,3434.4,0.58871528]
[1721275791108,2.91112,3435.1,3434.4,0.58871528]
[1721275791570,2.91122,3435.0,3434.4,0.58871528]
[1721275791994,2.91129,3434.9,3434.4,0.58871528]
[1721275792179,2.91129,3434.9,3434.2,2.3871]
[1721275792384,2.91121,3435.0,3434.2,2.3871]
[1721275792606,2.91146,3434.7,3434.2,2.3871]
[1721275793265,2.4855,3435.6,3434.2,2.3871]
[1721275793266,2.91155,3434.6,3434.2,2.3871]
[1721275794596,2.91155,3434.6,3434.3,0.23871]
[1721275794829,2.91142,3434.8,3434.3,0.23871]
[1721275797515,2.91112,3435.1,3434.3,0.23871]
[1721275797516,2.91124,3435.0,3434.3,0.23871]
[1721275797894,2.9113,3434.9,3434.3,0.23871]
[1721275800518,2.91135,3434.9,3434.2,2.3871]
[1721275800825,2.91104,3435.2,3434.3,2.329]
[1721275800984,2.91104,3435.2,3434.4,2.329]
[1721275801185,2.91112,3435.1,3434.4,2.329]
[1721275801482,2.91112,3435.1,3434.5,0.723977]
[1721275801707,2.91095,3435.3,3434.5,3.635607]
[1721275801915,2.91081,3435.5,3434.7,2.3934]
[1721275802496,2.91088,3435.4,3434.7,2.3934]
[1721275803397,2.91077,3435.6,3434.7,5.30484]
[1721275803605,2.91077,3435.6,3434.8,0.8940427]
[1721275803781,2.91077,3435.6,3434.8,3.8054027]
[1721275803982,2.9108,3435.5,3434.8,3.8054027]
[1721275804721,2.91054,3435.8,3434.8,3.8054027]
[1721275804722,2.91066,3435.7,3434.8,3.8054027]
[1721275804890,2.91069,3435.6,3434.8,3.8054027]
[1721275805090,2.91078,3435.5,3434.9,0.61988027]
[1721275805789,2.91078,3435.5,3435.0,2.4594]
[1721275807643,2.91065,3435.7,3435.0,2.4594]
[1721275808143,2.91071,3435.6,3435.0,2.4594]
[1721275810498,2.91063,3435.7,3435.0,2.4594]
[1721275810704,2.91025,3436.2,3435.4,2.91086]
[1721275811009,2.91025,3436.2,3435.5,2.2602]
[1721275811209,2.91012,3436.3,3435.5,2.2602]
[1721275812033,2.91012,3436.3,3435.5,5.17095]
[1721275812956,2.91021,3436.2,3435.5,2.2602]
[1721275813448,2.91021,3436.2,3435.5,2.777304]
[1721275813803,2.3446,3436.5,3435.1,3.1658683]
[1721275814115,2.91059,3435.8,3435.1,2.4774]
[1721275814299,2.91028,3436.1,3435.2,2.91102]
[1721275815034,2.91011,3436.3,3435.2,2.91102]
[1721275815035,2.91037,3436.0,3435.2,2.91102]
[1721275815922,2.91056,3435.8,3435.1,2.4774]
[1721275816451,2.91063,3435.7,3435.1,2.4774]
[1721275816748,2.91063,3435.7,3435.1,3.016267]
[1721275818434,2.91069,3435.6,3435.1,3.016267]
[1721275818636,2.91096,3435.3,3434.8,2.398]
[1721275819901,2.91096,3435.3,3434.6,2.4682]
[1721275820448,2.91113,3435.1,3434.6,2.4682]
[1721275822236,2.4998,3435.4,3434.0,2.4682]
[1721275822406,2.91146,3434.8,3434.0,2.4682]
[1721275822608,2.91149,3434.7,3434.0,2.4682]
[1721275824412,7.34,3435.4,3434.2,2.4682]
[1721275824612,2.4998,3435.8,3434.4,5.37988]
[1721275824814,2.91088,3435.4,3434.5,2.91155]
[1721275825014,2.91088,3435.4,3434.7,2.4682]
[1721275827534,2.91106,3435.2,3434.7,2.4682]
[1721275828250,2.91114,3435.1,3434.7,2.4682]
[1721275829965,2.91098,3435.3,3434.7,2.4682]
[1721275830261,2.91098,3435.3,3434.8,0.24682]
[1721275831279,2.91057,3435.8,3434.8,0.24682]
[1721275831429,2.91057,3435.8,3434.9,2.2902]
[1721275831769,2.91057,3435.8,3434.8,1.999]
[1721275831770,2.91057,3435.8,3435.1,2.2902]
[1721275832667,2.91057,3435.8,3435.1,5.20131]
[1721275833171,2.9104,3436.0,3435.1,5.20131]
[1721275833374,2.9104,3436.0,3435.2,0.811249]
[1721275833669,2.91045,3435.9,3435.2,0.811249]
[1721275836380,2.9103,3436.1,3435.2,0.811249]
[1721275836557,2.91036,3436.0,3435.2,0.811249]
[1721275836758,2.91036,3436.0,3435.2,3.722279]
[1721275836964,2.91036,3436.0,3435.4,2.2874]
[1721275840839,2.91044,3435.9,3435.4,2.2874]
[1721275841041,2.91062,3435.7,3435.1,2.2595]
[1721275843549,2.9108,3435.5,3435.1,2.2595]
[1721275843742,2.91054,3435.8,3435.2,0.22595]
[1721275843743,2.91062,3435.7,3435.2,0.22595]
[1721275846355,2.91062,3435.7,3435.1,2.2595]
[1721275848891,2.91069,3435.6,3435.1,2.2595]
[1721275850393,2.91061,3435.7,3435.1,2.2595]
[1721275850685,2.91048,3435.9,3435.1,2.776577]
[1721275850880,2.91048,3435.9,3435.2,2.91102]
[1721275851181,2.91048,3435.9,3435.3,2.3871]
[1721275852669,2.91031,3436.1,3435.3,2.3871]
[1721275852865,2.91031,3436.1,3435.4,0.5815197]
[1721275853293,2.91007,3436.4,3435.6,2.2596]
[1721275853478,2.90978,3436.7,3435.8,2.2596]
[1721275853685,2.90978,3436.7,3435.8,5.17005]
[1721275854012,2.90978,3436.7,3435.9,5.29094]
[1721275854214,2.90978,3436.7,3436.0,0.820154]
[1721275854696,2.90978,3436.7,3436.1,2.3805]
[1721275855601,2.90963,3436.9,3436.1,2.3805]
[1721275855893,2.90969,3436.8,3436.1,2.3805]
[1721275857792,2.90976,3436.7,3436.1,2.3805]
[1721275858773,2.90993,3436.5,3436.1,2.3805]
[1721275860027,2.90986,3436.6,3435.8,2.4011]
[1721275860313,2.91013,3436.3,3435.8,2.4011]
[1721275861402,2.4562,3436.6,3435.5,2.4597]
[1721275861605,2.91038,3436.0,3435.5,2.4597]
[1721275861922,2.91038,3436.0,3435.2,2.4597]
[1721275862088,2.91044,3435.9,3435.2,2.4597]
[1721275862884,2.91062,3435.7,3435.2,2.4597]
[1721275864123,2.91044,3435.9,3435.2,2.4597]
[1721275864322,2.91044,3435.9,3435.3,0.5887967]
[1721275864890,2.91044,3435.9,3435.2,2.4597]
[1721275865091,2.91054,3435.8,3435.2,2.4597]
[1721275867035,7.34,3436.4,3435.2,5.37073]
[1721275867331,2.91036,3436.0,3435.2,5.37073]
[1721275867631,0.582056,3435.9,3435.2,2.4597]
[1721275867938,2.91036,3436.0,3435.2,2.4597]
[1721275868535,2.91036,3436.0,3435.2,5.37071]
[1721275870197,0.3274236,3436.5,3435.3,5.36323]
[1721275870198,2.91003,3436.4,3435.3,5.36323]
[1721275870440,2.91026,3436.2,3435.3,5.36323]
[1721275870732,2.91003,3436.4,3435.4,0.827419]
[1721275870733,2.91028,3436.1,3435.4,0.827419]
[1721275871495,2.91028,3436.1,3435.5,2.4238]
[1721275873210,2.91011,3436.3,3435.5,2.4238]
[1721275873906,2.91019,3436.2,3435.5,2.4238]
[1721275874117,2.91019,3436.2,3435.6,0.6162059]
[1721275876733,3.74119,3436.2,3435.6,0.6162059]
[1721275876939,3.74119,3436.2,3435.5,2.4238]
[1721275878755,0.529491,3436.2,3435.5,2.4238]
[1721275878974,0.831,3436.3,3435.5,2.4238]
[1721275879361,2.91027,3436.2,3435.5,2.4238]
[1721275888091,2.91028,3436.1,3435.5,2.4238]
[1721275891479,2.4562,3436.6,3435.0,2.91119]
[1721275891480,0.818036,3436.7,3435.0,3.08566388]
[1721275891730,2.3758,3436.9,3436.0,2.4755]
[1721275891731,2.91005,3436.4,3436.0,2.4755]
[1721275895980,2.91005,3436.4,3435.9,0.831]
[1721275896144,2.91017,3436.3,3435.7,0.831]
[1721275897242,2.91017,3436.3,3435.7,1.451586]
[1721275899576,5.28546,3436.9,3435.8,5.32252]
[1721275899778,2.90985,3436.6,3435.8,5.32252]
[1721275901600,3.74085,3436.6,3435.8,5.32252]
[1721275902441,3.74085,3436.6,3435.8,6.2909996]
[1721275902952,2.90995,3436.5,3435.8,3.3804796]
[1721275903485,2.91008,3436.4,3435.8,2.412]
[1721275904776,2.91012,3436.3,3435.8,2.412]
[1721275908581,2.90997,3436.5,3435.8,2.412]
[1721275908880,2.91003,3436.4,3435.8,2.412]
[1721275918378,2.90994,3436.5,3435.8,2.412]
[1721275919116,2.90994,3436.5,3435.8,5.32252]
[1721275919327,2.90985,3436.6,3435.8,5.32252]
[1721275926774,2.90985,3436.6,3435.9,2.91042]
[1721275926958,3.74068,3436.8,3436.0,2.4335]
[1721275927249,10.34,3437.1,3435.7,0.831]
[1721275927250,13.24943,3437.1,3436.3,5.1879]
[1721275927396,5.90943,3437.1,3436.3,5.1879]
[1721275927925,5.90943,3437.1,3436.4,0.831]
[1721275928240,4.795961,3437.1,3436.3,2.2778]
[1721275928535,4.795961,3437.1,3435.7,0.91524583]
[1721275928536,0.831,3436.7,3435.7,1.44116388]
[1721275928742,0.831,3436.7,3435.8,2.2688]
[1721275928896,2.90991,3436.6,3435.8,5.17932]
[1721275929294,0.831,3436.5,3435.8,5.17932]
[1721275930047,2.90991,3436.6,3435.9,2.91044]
[1721275930518,3.74136,3436.0,3435.3,2.445]
[1721275930700,0.831,3435.6,3435.3,2.445]
[1721275930899,0.831,3435.8,3435.3,2.445]
[1721275931126,0.831,3435.6,3435.3,2.445]
[1721275932334,2.91036,3436.0,3435.3,2.6895]
[1721275932542,2.91036,3436.0,3435.3,2.445]
[1721275932739,0.831,3435.6,3435.3,2.445]
[1721275932947,0.831,3435.4,3434.8,2.4614]
[1721275933109,0.831,3435.2,3434.8,2.4614]
[1721275935101,0.831,3435.2,3434.5,2.4631]
[1721275935102,3.74205,3435.2,3434.5,2.4631]
[1721275935340,0.831,3434.9,3434.5,2.4631]
[1721275935552,2.91119,3435.1,3434.5,2.4631]
[1721275935553,3.74219,3435.1,3434.5,2.4631]
[1721275936030,2.91122,3435.0,3434.5,2.4631]
[1721275936336,2.91122,3435.0,3434.2,5.23027]
[1721275936524,2.91122,3435.0,3434.2,7.12761]
[1721275936727,2.91129,3434.9,3434.2,4.21574]
[1721275937137,3.74229,3434.9,3434.2,4.21574]
[1721275937549,0.831,3434.7,3434.2,2.3184]
[1721275937863,0.831,3434.7,3434.0,10.0]
[1721275938095,2.91145,3434.8,3434.0,10.0]
[1721275938096,3.74263,3434.5,3434.0,10.0]
[1721275938362,3.7428,3434.3,3434.0,10.0]
[1721275939067,2.9118,3434.3,3434.0,10.0]
[1721275942051,2.91191,3434.2,3434.0,10.0]
[1721275942443,2.91163,3434.6,3434.0,12.4624]
[1721275942640,2.91138,3434.8,3434.1,0.831]
[1721275944566,2.91138,3434.8,3434.0,13.79174]
[1721275945067,3.74238,3434.8,3434.0,13.79174]
[1721275945565,2.91146,3434.7,3434.0,13.79174]
[1721275945922,2.91173,3434.4,3434.0,12.4624]
[1721275946122,2.91173,3434.4,3434.0,10.0]
[1721275947128,2.91183,3434.3,3434.0,10.0]
[1721275947325,2.91191,3434.2,3434.0,10.0]
[1721275947735,2.91183,3434.3,3434.0,10.0]
[1721275947736,2.91197,3434.1,3434.0,10.0]
[1721275947929,3.57745,3434.1,3434.0,10.0]
[1721275949195,6.48942,3434.1,3434.0,10.0]
[1721275949392,8.83022,3434.1,3434.0,10.0]
[1721275949810,11.74219,3434.1,3434.0,10.0]
[1721275950312,14.74219,3434.1,3434.0,10.0]
[1721275951791,12.66122,3434.1,3434.0,10.0]
[1721275953868,13.23239,3434.1,3434.0,10.0]
[1721275954069,10.32042,3434.1,3434.0,10.0]
[1721275954312,13.23239,3434.1,3434.0,10.0]
[1721275968028,9.48942,3434.1,3434.0,10.0]
[1721275968188,10.32042,3434.1,3434.0,10.0]
[1721275970521,6.48942,3434.1,3434.0,10.0]
[1721275970690,6.65494,3434.1,3434.0,10.0]
[1721275972416,2.54600933,3434.7,3434.0,12.4092]
[1721275972417,2.91155,3434.6,3434.0,12.4092]
[1721275972590,8.171,3434.8,3434.0,12.4092]
[1721275972591,7.34,3434.8,3434.0,12.4092]
[1721275972794,2.91144,3434.8,3434.2,2.4092]
[1721275973039,8.171,3435.5,3434.4,0.831]
[1721275973244,0.831,3435.3,3434.4,0.831]
[1721275973465,0.831,3435.3,3434.5,2.58512]
[1721275973638,3.74197,3435.3,3434.5,2.58512]
[1721275973956,2.91097,3435.3,3434.5,2.58512]
[1721275976213,2.91082,3435.5,3434.6,2.4053]
[1721275977714,2.91088,3435.4,3434.6,2.4053]
[1721275977915,2.91088,3435.4,3434.7,0.564093]
[1721275979425,2.91097,3435.3,3434.7,0.564093]
[1721275979834,2.91104,3435.2,3434.6,2.4053]
[1721275980031,2.91127,3435.0,3434.6,2.4053]
[1721275981530,2.91131,3434.9,3434.6,2.4053]
[1721275982845,2.91115,3435.1,3434.6,2.4053]
[1721275983044,2.91104,3435.2,3434.6,2.4053]
[1721275983045,2.91121,3435.0,3434.7,0.24053]
[1721275983444,2.9113,3434.9,3434.7,0.24053]
[1721275983651,2.9113,3434.9,3434.6,2.4053]
[1721275988430,2.91104,3435.2,3434.6,2.4053]
[1721275989552,2.91087,3435.4,3434.6,2.4053]
[1721275989553,2.91112,3435.1,3434.6,2.4053]
[1721275990366,2.91138,3434.8,3434.2,2.31]
[1721275993445,2.91121,3435.0,3434.2,2.31]
[1721275993650,2.91121,3435.0,3434.4,2.3467]
[1721275995747,2.91104,3435.2,3434.4,2.3467]
[1721275998671,2.91113,3435.1,3434.4,2.3467]
[1721276002348,2.91113,3435.1,3434.4,2.91169]
[1721276002688,7.34,3435.7,3435.0,2.2945]
[1721276002854,2.91044,3435.9,3435.2,3.1255]
[1721276003361,2.91044,3435.9,3435.3,2.2945]
[1721276006954,2.91054,3435.8,3435.3,2.2945]
[1721276007353,2.91054,3435.8,3435.4,0.46806257]
[1721276011212,5.82114,3435.8,3435.4,0.46806257]
[1721276011388,5.82114,3435.8,3434.4,1.994]
[1721276011389,2.91054,3435.8,3434.8,2.4095]
[1721276011818,2.91113,3435.1,3434.8,2.4095]
[1721276012926,2.91104,3435.2,3434.8,2.4095]
[1721276013528,2.91113,3435.1,3434.8,2.4095]
[1721276022486,2.91113,3435.1,3434.8,2.4095]
[1721276024540,2.91121,3435.0,3434.8,2.4095]
[1721276025601,2.91109,3435.2,3434.8,2.4095]
[1721276025823,2.91088,3435.4,3434.8,2.4095]
[1721276026026,2.91088,3435.4,3434.8,2.65045]
[1721276026816,2.91096,3435.3,3434.8,2.65045]
[1721276027645,2.9107,3435.6,3434.8,2.65045]
[1721276027821,3.0,3435.5,3434.8,2.65045]
[1721276028016,2.91093,3435.4,3434.8,2.65045]
[1721276028209,2.91095,3435.3,3434.8,2.65045]
[1721276030935,2.91095,3435.3,3434.8,2.4095]
[1721276031259,2.91114,3435.1,3434.3,2.4651]
[1721276031469,2.91122,3435.0,3434.3,3.2961]
[1721276032725,2.91122,3435.0,3434.3,5.208102]
[1721276034357,2.91122,3435.0,3434.5,0.831]
[1721276034847,2.91104,3435.2,3434.6,2.4032]
[1721276035065,2.91096,3435.3,3434.7,0.831]
[1721276035352,2.91096,3435.3,3434.8,2.4774]
[1721276035568,10.25053,3435.8,3434.8,5.38876]
[1721276035745,1.83183387,3435.9,3435.3,0.831]
[1721276035746,2.91045,3435.9,3435.3,0.831]
[1721276035910,2.91045,3435.9,3435.4,0.30963]
[1721276036419,2.91054,3435.8,3435.5,2.2653]
[1721276039931,2.91061,3435.8,3434.9,2.4753]
[1721276041755,2.91036,3436.0,3434.9,2.4753]
[1721276041756,2.91093,3435.4,3434.9,2.4753]
[1721276042365,2.91104,3435.2,3434.9,2.4753]
[1721276042562,2.91104,3435.2,3434.5,2.2777]
[1721276043967,2.4541,3435.7,3434.5,2.2777]
[1721276044173,2.91127,3435.0,3434.5,2.2777]
[1721276044584,2.91132,3434.9,3434.1,2.2777]
[1721276044790,2.91132,3434.9,3434.1,6.999855]
[1721276045707,2.91132,3434.9,3434.1,9.911815]
[1721276045924,2.91119,3435.1,3434.2,2.91186]
[1721276046129,2.91119,3435.1,3434.3,2.3712]
[1721276046290,2.91119,3435.1,3434.4,1.0005215]
[1721276047701,2.91119,3435.1,3434.5,2.3712]
[1721276049426,2.91153,3434.7,3434.1,2.3712]
[1721276049917,2.91163,3434.5,3434.1,2.3712]
[1721276050141,2.91163,3434.5,3434.0,10.0]
[1721276050344,2.9118,3434.3,3434.0,10.0]
[1721276050500,2.91192,3434.2,3434.0,10.0]
[1721276052398,2.91197,3434.1,3434.0,10.0]
[1721276057387,5.82394,3434.1,3434.0,10.0]
[1721276063646,8.27954,3434.1,3434.0,10.0]
[1721276063968,11.27954,3434.1,3434.0,10.0]
[1721276066714,8.82394,3434.1,3434.0,10.0]
[1721276067759,5.91197,3434.1,3434.0,10.0]
[1721276069725,2.9118,3434.3,3434.0,10.0]